bitfinex/quotes_BTCUSD_20251024
["timestamp","ask_amount","ask_price","bid_price","bid_amount"]
[1761267065338,0.18063583,110720.0,110710.0,0.04314941]
[1761267065553,0.88757233,110720.0,110710.0,0.04314941]
[1761267066226,0.88757233,110720.0,110710.0,0.07511511]
[1761267066437,0.88757233,110720.0,110710.0,0.04314941]
[1761267066876,0.18065215,110710.0,110700.0,0.02820633]
[1761267067081,0.18065215,110710.0,110700.0,0.2795209]
[1761267067289,0.18065215,110710.0,110700.0,0.08981901]
[1761267067547,0.18065215,110710.0,110690.0,0.18971902]
[1761267067770,0.21932,110700.0,110690.0,0.61953803]
[1761267068872,0.21932,110700.0,110690.0,0.61958676]
[1761267069318,0.21932,110700.0,110690.0,0.62358676]
[1761267071021,0.39998847,110700.0,110690.0,0.43386774]
[1761267071237,0.39998847,110700.0,110690.0,0.34404873]
[1761267071905,0.39998847,110700.0,110690.0,0.34204873]
[1761267072131,0.39990847,110700.0,110690.0,0.34004873]
[1761267072356,0.39990847,110700.0,110690.0,0.34104873]
[1761267073739,0.39990847,110700.0,110690.0,0.52173352]
[1761267074005,0.39990847,110700.0,110690.0,0.34104873]
[1761267074490,0.39990847,110700.0,110690.0,0.52173352]
[1761267074707,0.39990847,110700.0,110690.0,0.34104873]
[1761267077267,0.39990847,110700.0,110690.0,0.52173352]
[1761267079302,0.39974847,110700.0,110690.0,0.52173352]
[1761267080171,0.39974847,110700.0,110690.0,0.34104873]
[1761267080399,0.88732497,110700.0,110690.0,0.00104873]
[1761267080667,0.97714398,110700.0,110690.0,0.00104873]
[1761267081332,1.31714398,110700.0,110690.0,4.873e-05]
[1761267082247,1.31714398,110700.0,110690.0,0.00104873]
[1761267082946,1.40696299,110700.0,110690.0,0.00104873]
[1761267083168,1.31714398,110700.0,110690.0,0.00104873]
[1761267084726,1.53404626,110700.0,110690.0,0.00104873]
[1761267085157,1.04646976,110700.0,110690.0,0.00104873]
[1761267085383,1.53404626,110700.0,110690.0,0.00104873]
[1761267086712,1.49786398,110700.0,110690.0,0.00104873]
[1761267087171,1.49786398,110700.0,110690.0,4.873e-05]
[1761267088069,0.02714383,110710.0,110690.0,4.873e-05]
[1761267088302,0.22237197,110730.0,110700.0,0.27048686]
[1761267088303,0.24784535,110730.0,110700.0,0.27048686]
[1761267088548,0.34239607,110720.0,110700.0,0.08981901]
[1761267088772,0.34239607,110720.0,110690.0,0.18073316]
[1761267088773,0.18065215,110710.0,110690.0,0.18073316]
[1761267088994,0.2196,110700.0,110690.0,0.61055217]
[1761267089892,0.18966786,110720.0,110700.0,0.18066216]
[1761267090106,0.2196,110710.0,110700.0,0.18066216]
[1761267091456,0.40025215,110710.0,110700.0,0.18166216]
[1761267091802,0.40025215,110710.0,110700.0,0.001]
[1761267092229,0.40025215,110710.0,110700.0,0.18166847]
[1761267093328,0.40025215,110710.0,110700.0,0.001]
[1761267094617,0.18066847,110700.0,110690.0,4.873e-05]
[1761267096938,0.18065215,110710.0,110690.0,0.18173352]
[1761267097157,0.40018847,110700.0,110690.0,0.18173352]
[1761267097788,0.40018847,110700.0,110690.0,0.18073352]
[1761267098473,0.21952,110700.0,110690.0,0.18073352]
[1761267098683,0.40018847,110700.0,110690.0,0.18073352]
[1761267099747,0.18065215,110710.0,110700.0,0.18066847]
[1761267099998,0.34225215,110710.0,110700.0,0.18066847]
[1761267100218,0.40009215,110710.0,110700.0,0.18066847]
[1761267101882,0.88766865,110710.0,110690.0,4.873e-05]
[1761267102111,0.88766865,110710.0,110700.0,0.18066847]
[1761267102112,0.40009242,110710.0,110700.0,0.18066847]
[1761267102330,0.40009242,110710.0,110700.0,0.001]
[1761267103402,0.88766892,110710.0,110700.0,0.001]
[1761267104893,1.4329502,110710.0,110700.0,0.001]
[1761267105119,1.4329502,110710.0,110690.0,4.873e-05]
[1761267105120,0.18066847,110700.0,110690.0,4.873e-05]
[1761267105328,0.75806398,110700.0,110690.0,4.873e-05]
[1761267106208,1.09806398,110700.0,110690.0,4.873e-05]
[1761267106424,1.10006398,110700.0,110690.0,4.873e-05]
[1761267106641,1.10006398,110700.0,110650.0,0.0239765]
[1761267106642,0.18073377,110660.0,110650.0,0.0239765]
[1761267106861,0.40017377,110660.0,110650.0,4.875e-05]
[1761267108162,0.88775027,110660.0,110650.0,4.875e-05]
[1761267108369,0.88775027,110660.0,110650.0,0.00104875]
[1761267108575,0.40017377,110660.0,110650.0,0.00104875]
[1761267109011,0.80776354,110660.0,110650.0,4.875e-05]
[1761267109215,0.80776354,110660.0,110650.0,0.00204875]
[1761267109418,0.80776354,110660.0,110650.0,0.00104875]
[1761267109886,0.80776354,110660.0,110650.0,4.875e-05]
[1761267111244,0.80776354,110660.0,110650.0,0.00104875]
[1761267111245,0.34233377,110660.0,110650.0,0.00104875]
[1761267111444,0.58097377,110660.0,110650.0,0.00104875]
[1761267111792,0.89874453,110660.0,110650.0,0.00104875]
[1761267111966,0.98856354,110660.0,110650.0,0.00104875]
[1761267112162,0.98856354,110660.0,110650.0,0.00207278]
[1761267112368,0.89874453,110660.0,110650.0,0.00207278]
[1761267112755,0.58097377,110660.0,110650.0,0.00207278]
[1761267114203,0.18073377,110660.0,110650.0,0.00207278]
[1761267114397,0.40017377,110660.0,110650.0,0.00207278]
[1761267115247,0.18073377,110660.0,110650.0,0.00207278]
[1761267115474,0.71794453,110660.0,110650.0,0.00207278]
[1761267116509,0.40017377,110660.0,110650.0,0.00207278]
[1761267118382,0.18073377,110660.0,110650.0,0.00207278]
[1761267118592,0.40013377,110660.0,110650.0,0.00207278]
[1761267119004,0.18073377,110660.0,110650.0,0.00207278]
[1761267119213,0.40009377,110660.0,110650.0,0.00207278]
[1761267119676,0.71786453,110660.0,110650.0,0.00207278]
[1761267120135,0.40009377,110660.0,110650.0,0.00207278]
[1761267123588,0.23857377,110660.0,110650.0,0.00207278]
[1761267123834,0.40001377,110660.0,110650.0,0.00207278]
[1761267125412,0.18071744,110670.0,110650.0,0.50059365]
[1761267125605,0.21928,110660.0,110650.0,0.52179886]
[1761267125793,0.18071894,110670.0,110650.0,0.92938863]
[1761267126036,0.05784,110680.0,110670.0,0.18071744]
[1761267126252,0.21928,110680.0,110670.0,0.18071744]
[1761267127939,0.05784,110680.0,110670.0,0.52071744]
[1761267128191,0.21932,110680.0,110670.0,0.52171744]
[1761267128603,0.21932,110680.0,110670.0,0.52271744]
[1761267128815,0.21932,110680.0,110670.0,0.52171744]
[1761267129300,0.21932,110680.0,110670.0,0.93030721]
[1761267129514,0.21932,110680.0,110670.0,0.92830721]
[1761267129948,0.21932,110680.0,110670.0,0.92930721]
[1761267130394,0.21932,110680.0,110670.0,0.92830721]
[1761267130651,0.21932,110680.0,110670.0,0.92930721]
[1761267130862,0.18970189,110700.0,110680.0,0.18068778]
[1761267131065,0.21924,110690.0,110680.0,0.49845854]
[1761267131268,0.21924,110690.0,110680.0,0.18068778]
[1761267131682,0.39992479,110690.0,110670.0,0.62291361]
[1761267131898,0.39992479,110690.0,110680.0,0.18070112]
[1761267132306,0.39992479,110690.0,110680.0,0.001]
[1761267133098,0.18070112,110680.0,110670.0,0.27087713]
[1761267133843,0.39992479,110690.0,110670.0,0.27087713]
[1761267134277,0.39992479,110690.0,110680.0,0.001]
[1761267134735,0.39992479,110690.0,110670.0,0.27187713]
[1761267134970,0.39992479,110690.0,110670.0,0.27287713]
[1761267135177,0.39992479,110690.0,110670.0,0.27187713]
[1761267135603,0.39992479,110690.0,110680.0,0.001]
[1761267135807,0.39992479,110690.0,110670.0,0.27187713]
[1761267136021,0.39992479,110690.0,110670.0,0.27287713]
[1761267136241,0.39992479,110690.0,110670.0,0.27187713]
[1761267136451,0.39992479,110690.0,110680.0,0.001]
[1761267136953,0.18070112,110680.0,110670.0,0.18205812]
[1761267137846,0.18070112,110680.0,110670.0,0.18105812]
[1761267138272,0.18070112,110680.0,110670.0,0.18305812]
[1761267138928,0.39992479,110690.0,110670.0,0.18305812]
[1761267139581,0.39992479,110690.0,110670.0,0.18405812]
[1761267140191,0.39992479,110690.0,110670.0,0.18305812]
[1761267140433,0.39992479,110690.0,110670.0,0.18205812]
[1761267140868,0.39992479,110690.0,110670.0,0.18305812]
[1761267141657,0.39992479,110690.0,110670.0,0.18305873]
[1761267141658,0.18070112,110680.0,110670.0,0.18305873]
[1761267142001,0.39992479,110690.0,110670.0,0.18305873]
[1761267142659,0.39992479,110690.0,110670.0,0.18205873]
[1761267142888,0.39992479,110690.0,110670.0,0.18305873]
[1761267143316,0.39992479,110690.0,110670.0,0.18205873]
[1761267143522,0.39992479,110690.0,110670.0,0.18105873]
[1761267143730,0.39992479,110690.0,110670.0,0.18405873]
[1761267144149,0.39992479,110690.0,110670.0,0.18205873]
[1761267144359,0.39992479,110690.0,110670.0,0.18305873]
[1761267145194,0.39992479,110690.0,110670.0,0.00234129]
[1761267145195,0.18070112,110680.0,110670.0,0.00234129]
[1761267145616,0.49847188,110680.0,110670.0,0.00234129]
[1761267145999,0.18070112,110680.0,110670.0,0.00134129]
[1761267146675,0.49847188,110680.0,110670.0,0.00134129]
[1761267146887,0.49847188,110680.0,110670.0,0.00234129]
[1761267147099,0.49847188,110680.0,110670.0,0.00034129]
[1761267147100,0.18070112,110680.0,110670.0,0.00034129]
[1761267147304,0.49847188,110680.0,110670.0,0.00034129]
[1761267147508,0.49847188,110680.0,110670.0,0.00234129]
[1761267147715,0.49847188,110680.0,110670.0,0.00134129]
[1761267147930,0.49947188,110680.0,110670.0,0.00134129]
[1761267148971,0.49947188,110680.0,110670.0,0.00034129]
[1761267150266,1.266666,110680.0,110670.0,0.00034129]
[1761267150503,1.24706165,110680.0,110670.0,0.00034129]
[1761267151577,0.92929089,110680.0,110670.0,0.00034129]
[1761267154041,1.24706165,110680.0,110670.0,0.00034129]
[1761267154467,0.92929089,110680.0,110670.0,0.00034129]
[1761267155532,0.91201787,110680.0,110670.0,0.00034129]
[1761267158347,1.22978863,110680.0,110670.0,0.00034129]
[1761267160487,0.59424711,110680.0,110670.0,0.00034129]
[1761267160698,0.91201787,110680.0,110670.0,0.00034129]
[1761267165193,0.57201787,110680.0,110670.0,0.00034129]
[1761267167099,0.25424711,110680.0,110670.0,0.00034129]
[1761267167312,0.18070112,110680.0,110670.0,0.00034129]
[1761267170146,0.18070112,110680.0,110670.0,0.18105873]
[1761267170794,0.18070112,110680.0,110670.0,0.00034129]
[1761267171002,0.72678832,110680.0,110670.0,0.00034129]
[1761267171234,0.66872573,110680.0,110670.0,0.00034129]
[1761267171632,0.66872573,110680.0,110670.0,0.00134129]
[1761267171834,0.66872573,110680.0,110670.0,0.00034129]
[1761267172870,0.18070112,110680.0,110670.0,0.00034129]
[1761267173216,0.39934112,110680.0,110670.0,0.18105873]
[1761267173409,0.21864,110680.0,110670.0,0.18105873]
[1761267175235,0.21864,110680.0,110670.0,0.18305873]
[1761267177307,0.21864,110680.0,110670.0,0.27287774]
[1761267178797,0.21864,110680.0,110670.0,0.61287774]
[1761267183601,0.05784,110680.0,110670.0,0.61287774]
[1761267183740,0.42834189,110700.0,110690.0,0.18068479]
[1761267183943,0.58898189,110700.0,110680.0,0.18068711]
[1761267184163,0.58898189,110700.0,110680.0,0.27050612]
[1761267184943,0.58898189,110700.0,110680.0,0.27055487]
[1761267185247,0.58898189,110700.0,110690.0,0.18068479]
[1761267186571,0.58898189,110700.0,110690.0,0.18168479]
[1761267186964,0.58898189,110700.0,110690.0,0.18268479]
[1761267186965,0.39928,110700.0,110690.0,0.18268479]
[1761267187191,0.57994847,110700.0,110690.0,0.18268479]
[1761267187394,0.39928,110700.0,110690.0,0.18268479]
[1761267189053,0.00174412,110720.0,110710.0,0.18065215]
[1761267189273,0.24925174,110720.0,110700.0,0.18066107]
[1761267189478,0.40985174,110720.0,110700.0,0.18066107]
[1761267190182,0.40985174,110720.0,110710.0,0.18065215]
[1761267190392,0.05958412,110720.0,110710.0,0.18065215]
[1761267190602,0.22214412,110720.0,110710.0,0.28853637]
[1761267190811,0.22214412,110720.0,110710.0,0.27047116]
[1761267191230,0.22214412,110720.0,110710.0,0.61047116]
[1761267191458,0.22014412,110720.0,110710.0,0.61047116]
[1761267191663,0.22014412,110720.0,110710.0,0.61147116]
[1761267191867,0.16230412,110720.0,110710.0,1.09949577]
[1761267192496,0.16230412,110720.0,110710.0,0.61147116]
[1761267192701,0.16230412,110720.0,110710.0,0.61247116]
[1761267192973,0.00174412,110720.0,110710.0,1.09949577]
[1761267193187,0.00174412,110720.0,110710.0,1.10049577]
[1761267194289,0.00174412,110720.0,110710.0,1.09949577]
[1761267194495,0.00174412,110720.0,110710.0,1.09849577]
[1761267194720,0.00174412,110720.0,110710.0,1.10049577]
[1761267194927,0.00174412,110720.0,110710.0,1.13667805]
[1761267195576,1e-08,110720.0,110710.0,1.13667805]
[1761267195780,1e-08,110720.0,110710.0,1.13767805]
[1761267197055,1e-08,110720.0,110710.0,0.64965344]
[1761267197313,1e-08,110720.0,110710.0,1.13767805]
[1761267197526,1e-08,110720.0,110710.0,1.35615805]
[1761267197750,1e-08,110720.0,110710.0,1.13767805]
[1761267197937,1e-08,110720.0,110710.0,1.35607805]
[1761267198728,1e-08,110720.0,110710.0,1.29827805]
[1761267198932,1e-08,110720.0,110710.0,1.13767805]
[1761267199132,1e-08,110720.0,110710.0,1.35611805]
[1761267199699,1e-08,110720.0,110710.0,1.13767805]
[1761267199913,1e-08,110720.0,110710.0,1.35607805]
[1761267200936,1e-08,110720.0,110710.0,1.35407805]
[1761267201352,1e-08,110720.0,110710.0,1.35707805]
[1761267202174,1e-08,110720.0,110710.0,1.38419937]
[1761267202407,1e-08,110720.0,110710.0,1.38319937]
[1761267202628,0.27654214,110770.0,110760.0,0.1805706]
[1761267203263,0.09956,110770.0,110760.0,0.1805706]
[1761267203474,0.09956,110770.0,110760.0,0.28844667]
[1761267203675,0.09956,110770.0,110760.0,0.27038961]
[1761267203878,0.09960873,110770.0,110760.0,0.27038961]
[1761267204496,0.04180873,110770.0,110760.0,0.27038961]
[1761267206273,0.04180873,110770.0,110760.0,0.27138961]
[1761267206715,0.04180873,110770.0,110760.0,0.27038961]
[1761267207175,0.04180873,110770.0,110760.0,0.27138961]
[1761267207435,0.04180873,110770.0,110760.0,0.27238961]
[1761267208317,0.0435132,110770.0,110760.0,0.27238961]
[1761267210053,0.2240675,110770.0,110760.0,0.1825706]
[1761267210278,0.0435132,110770.0,110760.0,0.1825706]
[1761267211328,0.2240675,110770.0,110760.0,0.1825706]
[1761267211951,0.2240675,110770.0,110760.0,0.002]
[1761267212363,0.2240675,110770.0,110760.0,0.1825706]
[1761267212806,0.71209211,110770.0,110760.0,0.002]
[1761267213043,0.2240675,110770.0,110750.0,0.18058613]
[1761267213248,0.1805706,110760.0,110750.0,0.18058613]
[1761267213460,0.2383706,110760.0,110740.0,0.18960315]
[1761267213668,0.2383706,110760.0,110750.0,0.1805869]
[1761267215450,0.2383706,110760.0,110750.0,0.1815869]
[1761267216103,0.2383706,110760.0,110750.0,0.001]
[1761267216307,0.2383706,110760.0,110750.0,0.1815869]
[1761267216482,0.0578,110760.0,110750.0,0.1815869]
[1761267217887,0.2383706,110760.0,110750.0,0.1815869]
[1761267218105,0.0578,110760.0,110750.0,0.1815869]
[1761267218294,0.2383706,110760.0,110750.0,0.1815869]
[1761267218490,0.2397343,110760.0,110750.0,0.1815869]
[1761267219959,0.2397343,110760.0,110750.0,0.001]
[1761267221732,0.2397343,110760.0,110750.0,0.1815869]
[1761267221960,0.0591637,110760.0,110750.0,0.1815869]
[1761267222172,0.2397343,110760.0,110750.0,0.001]
[1761267222604,0.0591637,110760.0,110750.0,0.1815869]
[1761267222824,0.0013637,110760.0,110750.0,1.09943052]
[1761267223703,0.0013637,110760.0,110750.0,1.1346128]
[1761267223916,0.0013637,110760.0,110750.0,1.2959728]
[1761267224150,0.0013637,110760.0,110750.0,1.2979728]
[1761267224798,0.0013637,110760.0,110750.0,1.1376128]
[1761267225005,0.0013637,110760.0,110750.0,1.2979328]
[1761267225222,0.0013637,110760.0,110750.0,1.32186877]
[1761267225456,0.0013637,110760.0,110750.0,1.16154877]
[1761267225673,0.0013637,110760.0,110750.0,0.80994819]
[1761267226105,0.0013637,110760.0,110750.0,0.77372591]
[1761267226533,0.0013637,110760.0,110750.0,0.61340591]
[1761267226756,0.0013637,110760.0,110750.0,0.77372591]
[1761267226959,0.0013637,110760.0,110750.0,0.61340591]
[1761267227177,0.0013637,110760.0,110750.0,0.77376591]
[1761267227592,0.0013637,110760.0,110750.0,0.61340591]
[1761267228705,0.0013637,110760.0,110750.0,0.61140591]
[1761267229135,0.0013637,110760.0,110750.0,0.61240591]
[1761267229553,0.0013637,110760.0,110750.0,0.61140591]
[1761267229994,0.0013637,110760.0,110750.0,0.61240591]
[1761267230633,0.0013637,110760.0,110750.0,0.61140591]
[1761267231045,0.0013637,110760.0,110750.0,0.61240591]
[1761267231391,0.1819343,110760.0,110750.0,0.45475498]
[1761267231591,0.1819343,110760.0,110750.0,0.63534188]
[1761267231980,0.1819343,110760.0,110750.0,0.63434188]
[1761267232281,0.1819343,110760.0,110750.0,0.63534188]
[1761267232492,0.1819343,110760.0,110750.0,0.63434188]
[1761267232619,0.1819343,110760.0,110750.0,0.63634188]
[1761267232824,0.1819343,110760.0,110750.0,0.11675498]
[1761267233141,0.1819343,110760.0,110750.0,0.09281901]
[1761267233513,0.0013637,110760.0,110750.0,0.2914646]
[1761267233723,0.0013637,110760.0,110750.0,0.29734188]
[1761267233930,0.0013637,110760.0,110750.0,0.29634188]
[1761267234140,0.1819343,110760.0,110750.0,0.29734188]
[1761267234561,0.1819343,110760.0,110750.0,0.11675498]
[1761267234782,0.1819343,110760.0,110750.0,0.11475498]
[1761267234997,0.1819343,110760.0,110750.0,0.11575498]
[1761267235201,0.1819343,110760.0,110750.0,0.002]
[1761267235630,0.2397343,110760.0,110750.0,0.002]
[1761267236055,0.55678461,110760.0,110750.0,0.002]
[1761267236263,0.2397343,110760.0,110750.0,0.002]
[1761267236882,0.2397343,110760.0,110750.0,0.001]
[1761267237349,0.2397343,110760.0,110750.0,0.002]
[1761267237538,0.55678461,110760.0,110750.0,0.002]
[1761267237775,0.55678461,110760.0,110750.0,0.001]
[1761267239230,0.55678461,110760.0,110730.0,0.18964982]
[1761267239231,0.18060321,110740.0,110730.0,0.18964982]
[1761267239408,0.39864321,110740.0,110730.0,0.00903097]
[1761267239648,0.39932518,110740.0,110730.0,0.00903097]
[1761267240077,0.39932518,110740.0,110720.0,0.21359987]
[1761267240279,0.39864321,110740.0,110720.0,0.30341888]
[1761267240492,0.39864321,110740.0,110730.0,0.18161952]
[1761267241386,0.39864321,110740.0,110730.0,0.002]
[1761267241597,0.71569352,110740.0,110730.0,0.002]
[1761267241821,0.71569352,110740.0,110730.0,0.001]
[1761267242702,0.39864321,110740.0,110730.0,0.001]
[1761267242922,0.71569352,110740.0,110730.0,0.001]
[1761267243567,0.18063473,110730.0,110710.0,0.18968375]
[1761267243767,0.18063473,110730.0,110710.0,0.27950276]
[1761267243768,0.34087583,110720.0,110710.0,0.27950276]
[1761267244574,0.39867583,110720.0,110710.0,0.27950276]
[1761267244788,0.39867583,110720.0,110710.0,0.09885161]
[1761267244989,0.39867583,110720.0,110710.0,0.09081901]
[1761267245411,0.39867583,110720.0,110710.0,0.002]
[1761267245826,0.39867583,110720.0,110710.0,0.001]
[1761267245827,0.71572614,110720.0,110710.0,0.001]
[1761267246039,0.39867583,110720.0,110710.0,0.001]
[1761267246236,0.39867583,110720.0,110710.0,0.002]
[1761267246439,0.39867583,110720.0,110710.0,0.18265215]
[1761267246647,0.39867583,110720.0,110710.0,0.002]
[1761267249116,0.71572614,110720.0,110710.0,0.002]
[1761267249654,1.30327546,110720.0,110710.0,0.002]
[1761267249836,0.98622515,110720.0,110710.0,0.002]
[1761267250217,1.30327546,110720.0,110710.0,0.002]
[1761267250420,0.98622515,110720.0,110710.0,0.002]
[1761267250646,0.98622515,110720.0,110710.0,0.001]
[1761267251357,0.18068479,110690.0,110680.0,0.01077949]
[1761267251567,0.39872479,110690.0,110680.0,0.01082824]
[1761267252287,0.21804,110690.0,110680.0,0.19152936]
[1761267252490,0.1806821,110700.0,110690.0,0.18067301]
[1761267252491,0.0578,110700.0,110690.0,0.18067301]
[1761267252690,0.39870869,110700.0,110680.0,0.28434837]
[1761267252890,0.39870869,110700.0,110680.0,0.60139868]
[1761267253091,0.39870869,110700.0,110680.0,0.28434837]
[1761267253493,0.18068479,110690.0,110680.0,0.28434837]
[1761267253694,0.39870869,110700.0,110680.0,0.28434837]
[1761267253864,0.39870869,110700.0,110680.0,0.28234837]
[1761267254067,0.39870869,110700.0,110690.0,0.001]
[1761267254266,0.39870869,110700.0,110680.0,0.28134837]
[1761267254466,0.39870869,110700.0,110690.0,0.001]
[1761267255639,0.18065215,110710.0,110690.0,0.19975326]
[1761267255839,0.18065215,110710.0,110690.0,0.18168479]
[1761267255840,0.39870847,110700.0,110690.0,0.18168479]
[1761267256828,0.39870847,110700.0,110680.0,0.28134837]
[1761267256998,0.39870847,110700.0,110690.0,0.18068479]
[1761267257411,0.39870847,110700.0,110690.0,0.001]
[1761267257615,0.39870847,110700.0,110690.0,0.002]
[1761267259526,0.39870847,110700.0,110690.0,0.18268479]
[1761267259727,0.39870847,110700.0,110690.0,0.002]
[1761267260650,0.39870847,110700.0,110690.0,0.18268479]
[1761267261889,0.39870847,110700.0,110690.0,0.002]
[1761267262096,0.71575878,110700.0,110690.0,0.002]
[1761267262343,0.39870847,110700.0,110690.0,0.002]
[1761267263283,0.71575878,110700.0,110690.0,0.002]
[1761267263703,0.39870847,110700.0,110690.0,0.002]
[1761267263920,0.7745981,110700.0,110690.0,0.002]
[1761267264126,0.71575878,110700.0,110690.0,0.002]
[1761267264340,0.39870847,110700.0,110690.0,0.002]
[1761267264993,0.71575878,110700.0,110690.0,0.002]
[1761267266500,0.18068479,110690.0,110680.0,0.00179319]
[1761267267740,0.18068479,110690.0,110680.0,0.00279319]
[1761267267953,0.18068479,110690.0,110680.0,0.00379319]
[1761267268371,0.18068479,110690.0,110680.0,0.18449334]
[1761267268583,0.39880479,110690.0,110680.0,0.18449334]
[1761267269189,0.39880479,110690.0,110680.0,0.46387224]
[1761267269396,0.39880479,110690.0,110680.0,0.18449334]
[1761267269815,0.39880479,110690.0,110680.0,0.00379319]
[1761267270030,0.39880479,110690.0,110680.0,0.18449431]
[1761267271986,0.39880479,110690.0,110680.0,0.20843028]
[1761267272203,0.39880479,110690.0,110680.0,0.20668584]
[1761267274697,0.39880479,110690.0,110680.0,0.02598472]
[1761267274698,0.67818369,110690.0,110680.0,0.02598472]
[1761267274895,0.67818369,110690.0,110680.0,0.00204875]
[1761267276803,0.71641842,110690.0,110680.0,0.00204875]
[1761267279333,0.80623743,110690.0,110680.0,0.00204875]
[1761267279753,0.77965295,110690.0,110680.0,0.00204875]
[1761267280393,0.80679705,110690.0,110680.0,0.00204875]
[1761267281365,0.20782889,110690.0,110680.0,0.00204875]
[1761267281605,0.39880479,110690.0,110680.0,0.00204875]
[1761267282232,0.71641842,110690.0,110680.0,0.00204875]
[1761267287597,0.80623743,110690.0,110680.0,0.00204875]
[1761267288050,0.83338212,110690.0,110680.0,0.00204875]
[1761267288687,1.56733551,110690.0,110680.0,1e-08]
[1761267288900,0.89195077,110690.0,110680.0,1e-08]
[1761267289134,0.5568834,110680.0,110670.0,0.0020858]
[1761267289339,0.96444795,110680.0,110670.0,0.0020858]
[1761267290405,0.99159723,110680.0,110670.0,0.0020858]
[1761267290855,1.16217381,110680.0,110670.0,0.0020858]
[1761267292956,1.13502453,110680.0,110670.0,0.0020858]
[1761267294290,0.64683432,110680.0,110670.0,0.0020858]
[1761267294498,1.09884225,110680.0,110670.0,0.0020858]
[1761267294702,0.27065204,110680.0,110670.0,0.0020858]
[1761267296039,0.18083303,110680.0,110670.0,0.0020858]
[1761267296820,0.46032953,110680.0,110670.0,0.0020858]
[1761267297605,0.46032953,110680.0,110670.0,0.00200648]
[1761267300826,0.55014854,110680.0,110670.0,0.00200648]
[1761267301647,0.82964504,110680.0,110670.0,0.00200648]
[1761267301865,0.55014854,110680.0,110670.0,0.00200648]
[1761267307671,0.18083303,110680.0,110670.0,0.00200648]
[1761267307918,0.46032953,110680.0,110670.0,0.00200648]
[1761267308146,0.18083303,110680.0,110670.0,0.00200648]
[1761267308770,0.18083303,110680.0,110670.0,0.18272392]
[1761267309648,0.00013191,110680.0,110670.0,0.18272392]
[1761267310845,0.00013191,110680.0,110670.0,0.18372392]
[1761267311257,0.18083303,110680.0,110670.0,0.00300648]
[1761267312039,0.46032953,110680.0,110670.0,0.00300648]
[1761267313518,0.46032953,110680.0,110670.0,0.00200648]
[1761267313718,0.46032953,110680.0,110670.0,0.00300648]
[1761267314309,0.46032953,110680.0,110670.0,0.00200648]
[1761267314730,0.66902116,110680.0,110670.0,0.00300648]
[1761267315155,0.66902116,110680.0,110670.0,0.00200648]
[1761267315156,1.09884017,110680.0,110670.0,0.00200648]
[1761267315630,1.13502245,110680.0,110670.0,0.00200648]
[1761267315839,1.16333601,110680.0,110670.0,0.00200648]
[1761267316052,1.53779263,110680.0,110630.0,0.0004]
[1761267316227,0.66895457,110640.0,110630.0,0.0004]
[1761267316447,0.88707457,110640.0,110630.0,0.0004]
[1761267317431,0.88707457,110640.0,110630.0,0.00054639]
[1761267318101,0.88707457,110640.0,110630.0,0.00154639]
[1761267318722,0.39888644,110640.0,110630.0,0.00154639]
[1761267319141,0.88707457,110640.0,110630.0,0.00154639]
[1761267320435,0.18076644,110640.0,110630.0,0.00154639]
[1761267320641,0.39892644,110640.0,110630.0,0.00154639]
[1761267321520,0.34108644,110640.0,110630.0,0.18232917]
[1761267321730,0.39892644,110640.0,110630.0,0.18232917]
[1761267321952,0.39892644,110640.0,110630.0,0.18369485]
[1761267322596,0.39892644,110640.0,110630.0,0.00291207]
[1761267323340,1.01223872,110640.0,110630.0,0.00291207]
[1761267324010,1.01223872,110640.0,110630.0,0.00191207]
[1761267324454,0.97693358,110640.0,110630.0,0.00191207]
[1761267326764,0.18081547,110610.0,110600.0,0.0004]
[1761267326989,0.39906335,110610.0,110600.0,0.0004]
[1761267328097,0.39906335,110610.0,110600.0,0.0024]
[1761267333196,8.788e-05,110610.0,110600.0,0.18323182]
[1761267333424,0.21832788,110610.0,110600.0,0.201315]
[1761267333651,0.21832788,110610.0,110600.0,0.18323182]
[1761267334340,8.788e-05,110610.0,110600.0,0.27305083]
[1761267334561,8.788e-05,110610.0,110600.0,0.61305083]
[1761267334791,0.16044788,110610.0,110600.0,0.61305083]
[1761267337446,0.16044788,110610.0,110600.0,0.61407555]
[1761267340425,0.34126335,110610.0,110600.0,0.27407555]
[1761267340602,0.34126335,110610.0,110600.0,0.18425654]
[1761267341775,0.34126335,110610.0,110600.0,0.00342472]
[1761267341936,0.34126335,110610.0,110600.0,0.18425654]
[1761267345846,0.16044788,110610.0,110600.0,0.27407555]
[1761267352319,0.34126335,110610.0,110600.0,0.2981804]
[1761267352523,0.34126335,110610.0,110600.0,0.02752957]
[1761267352722,0.34126335,110610.0,110600.0,0.00342472]
[1761267357682,0.65925833,110610.0,110600.0,0.00342472]
[1761267360696,0.65925833,110610.0,110600.0,0.00242472]
[1761267360901,0.65925833,110610.0,110600.0,0.00142472]
[1761267363334,0.34126335,110610.0,110600.0,0.00142472]
[1761267364364,0.18090335,110610.0,110600.0,0.00142472]
[1761267364569,0.39914335,110610.0,110600.0,0.00142472]
[1761267364773,0.39914335,110610.0,110600.0,0.20033972]
[1761267364993,0.39914335,110610.0,110600.0,0.46202383]
[1761267365399,0.39914335,110610.0,110600.0,0.00142472]
[1761267365604,0.67891064,110610.0,110600.0,0.00142472]
[1761267366845,0.39914335,110610.0,110600.0,0.00142472]
[1761267367487,0.71715732,110610.0,110600.0,0.00142472]
[1761267371727,0.39914335,110610.0,110600.0,0.00142472]
[1761267371925,0.39914335,110610.0,110600.0,0.18225654]
[1761267372611,0.21832788,110610.0,110600.0,0.18225654]
[1761267374893,8.788e-05,110610.0,110600.0,0.18225654]
[1761267375099,0.21832788,110610.0,110600.0,0.18225654]
[1761267376828,0.05796788,110610.0,110600.0,0.59008952]
[1761267377059,0.21832788,110610.0,110600.0,0.59008952]
[1761267377282,0.21832788,110610.0,110600.0,0.27207555]
[1761267378002,0.01968948,110610.0,110600.0,0.27207555]
[1761267378480,0.20050495,110610.0,110600.0,0.09124373]
[1761267378695,0.20050495,110610.0,110600.0,0.27207555]
[1761267378898,0.01968948,110610.0,110600.0,0.27207555]
[1761267383992,0.20050495,110610.0,110600.0,0.00142472]
[1761267384260,0.51851892,110610.0,110600.0,0.00142472]
[1761267384892,0.01968948,110610.0,110600.0,0.18225654]
[1761267385102,0.01968948,110610.0,110600.0,0.20033972]
[1761267385330,0.01968948,110610.0,110600.0,0.27207555]
[1761267390466,0.01968948,110610.0,110600.0,0.61207555]
[1761267390857,0.01968948,110610.0,110600.0,0.89180859]
[1761267391612,0.01968948,110610.0,110600.0,0.61207555]
[1761267395646,0.01968948,110610.0,110600.0,0.63623828]
[1761267397690,0.01968948,110610.0,110600.0,1.19570436]
[1761267397898,0.18982238,110630.0,110610.0,0.18081547]
[1761267398095,0.16028,110620.0,110610.0,0.56844906]
[1761267398301,0.18982264,110630.0,110620.0,0.18079913]
[1761267398559,0.35010264,110630.0,110620.0,0.47861208]
[1761267398736,0.16028,110630.0,110620.0,0.46053217]